bitfinex/quotes_BTCUSD_20240823
["timestamp","ask_amount","ask_price","bid_price","bid_amount"]
[1724421067877,0.02766348,61112.0,61111.0,0.00989182]
[1724421068124,0.10636348,61112.0,61111.0,0.00989182]
[1724421068574,0.10636348,61112.0,61111.0,0.50080082]
[1724421069070,0.02766348,61112.0,61111.0,0.6648038]
[1724421069272,0.02766348,61112.0,61111.0,0.9920768]
[1724421069480,0.02766348,61112.0,61111.0,1.3800498]
[1724421070544,0.02566348,61112.0,61111.0,1.3800498]
[1724421070944,0.02666348,61112.0,61111.0,1.3830498]
[1724421071146,0.02566348,61112.0,61111.0,1.3790498]
[1724421071557,0.02566348,61112.0,61111.0,1.4614498]
[1724421071558,0.02666348,61112.0,61111.0,1.4614498]
[1724421071848,0.02666348,61112.0,61111.0,1.7857228]
[1724421072055,0.02666348,61112.0,61111.0,1.4574498]
[1724421072277,0.02866348,61112.0,61111.0,1.4654498]
[1724421073659,0.02866348,61112.0,61111.0,1.4047498]
[1724421073883,0.02866348,61112.0,61111.0,1.3263498]
[1724421074086,0.02866348,61112.0,61111.0,0.9990768]
[1724421075029,0.02866348,61112.0,61111.0,0.9910768]
[1724421075030,0.02566348,61112.0,61111.0,0.9910768]
[1724421075234,0.02566348,61112.0,61111.0,0.9940768]
[1724421075462,0.02766348,61112.0,61111.0,0.9990768]
[1724421075637,0.02766348,61112.0,61111.0,0.9960768]
[1724421075814,0.02666348,61112.0,61111.0,0.9910768]
[1724421076016,0.02666348,61112.0,61111.0,0.9960768]
[1724421076340,0.02766348,61112.0,61111.0,0.9960768]
[1724421076964,0.02766348,61112.0,61111.0,0.9990768]
[1724421077216,0.02766348,61112.0,61111.0,1.3263498]
[1724421077416,0.02566348,61112.0,61111.0,1.3183498]
[1724421077619,0.02566348,61112.0,61111.0,0.6638038]
[1724421077822,0.02566348,61112.0,61111.0,0.3415308]
[1724421077823,0.08736348,61112.0,61111.0,0.3415308]
[1724421078045,0.02666348,61112.0,61111.0,0.9990768]
[1724421078253,0.02666348,61112.0,61111.0,1.3263498]
[1724421078487,0.02666348,61112.0,61111.0,1.4710498]
[1724421078691,0.02666348,61112.0,61111.0,1.4078498]
[1724421079108,0.02666348,61112.0,61111.0,1.3263498]
[1724421079314,0.02666348,61112.0,61111.0,0.9990768]
[1724421079734,0.02666348,61112.0,61111.0,0.6718038]
[1724421079939,0.08736348,61112.0,61111.0,0.6718038]
[1724421080968,0.08736348,61112.0,61111.0,0.9990768]
[1724421081174,0.02666348,61112.0,61111.0,0.9990768]
[1724421081577,0.02666348,61112.0,61111.0,1.3263498]
[1724421081981,0.02666348,61112.0,61111.0,1.4671498]
[1724421087673,0.02666348,61112.0,61111.0,1.7944228]
[1724421090230,0.02666348,61112.0,61111.0,1.3263498]
[1724421090436,0.09026348,61112.0,61111.0,0.9990768]
[1724421090645,0.09026348,61112.0,61111.0,0.6718038]
[1724421091361,0.09026348,61112.0,61111.0,0.9990768]
[1724421092020,0.02666348,61112.0,61111.0,0.9990768]
[1724421092234,0.02666348,61112.0,61111.0,1.11365246]
[1724421092437,0.02666348,61112.0,61111.0,1.44092546]
[1724421094022,0.02666348,61112.0,61111.0,1.3263498]
[1724421094195,0.10166348,61112.0,61111.0,0.9990768]
[1724421094668,0.02666348,61112.0,61111.0,0.9990768]
[1724421094899,0.02666348,61112.0,61111.0,1.11365246]
[1724421095304,0.02666348,61112.0,61111.0,0.9990768]
[1724421095509,0.02666348,61112.0,61111.0,0.6718038]
[1724421095510,0.16786348,61112.0,61111.0,0.6718038]
[1724421095710,0.33149648,61112.0,61111.0,0.01689182]
[1724421095910,0.16786348,61112.0,61111.0,0.01689182]
[1724421096314,0.16786348,61112.0,61111.0,0.18052782]
[1724421096488,0.16686348,61112.0,61111.0,0.17552782]
[1724421097257,0.16686348,61112.0,61111.0,0.49980082]
[1724421097464,0.02566348,61112.0,61111.0,1.3183498]
[1724421097671,0.02566348,61112.0,61111.0,1.3203498]
[1724421098085,0.02566348,61112.0,61111.0,1.3183498]
[1724421098444,0.02566348,61112.0,61111.0,1.3193498]
[1724421098574,0.02566348,61112.0,61111.0,1.6456228]
[1724421098795,0.02666348,61112.0,61111.0,1.6456228]
[1724421099199,0.02666348,61112.0,61111.0,1.77692124]
[1724421099565,0.02666348,61112.0,61111.0,1.8147598]
[1724421099761,0.02566348,61112.0,61111.0,2.17767061]
[1724421100006,0.02666348,61112.0,61111.0,2.17967061]
[1724421100187,0.02666348,61112.0,61111.0,1.8167598]
[1724421100393,0.02770348,61112.0,61111.0,1.8197598]
[1724421100594,0.02770348,61112.0,61111.0,1.81975955]
[1724421100959,0.02770348,61112.0,61111.0,1.74611189]
[1724421101403,0.02770348,61112.0,61111.0,1.79518596]
[1724421103109,0.02770348,61112.0,61111.0,1.74611189]
[1724421104596,0.02770348,61112.0,61111.0,1.79517495]
[1724421107785,0.02770348,61112.0,61111.0,1.71297495]
[1724421108013,0.02770348,61112.0,61111.0,1.6516228]
[1724421108214,0.02770348,61112.0,61111.0,1.3243498]
[1724421108489,0.02770348,61112.0,61111.0,0.6698038]
[1724421108688,0.10410348,61112.0,61111.0,0.3425308]
[1724421108932,0.33043648,61112.0,61111.0,0.01489182]
[1724421109150,0.16680348,61112.0,61111.0,0.3425308]
[1724421109363,0.16480348,61112.0,61111.0,0.16420298]
[1724421109563,0.16680348,61112.0,61111.0,0.18244396]
[1724421109967,0.16580348,61112.0,61111.0,0.17944396]
[1724421110195,0.16680348,61112.0,61111.0,0.33707996]
[1724421110403,0.16680348,61112.0,61111.0,0.17444396]
[1724421110609,0.16680348,61112.0,61111.0,0.01044098]
[1724421111018,0.16680348,61112.0,61111.0,0.0012]
[1724421111372,0.65770348,61112.0,61111.0,0.0012]
[1724421111575,1.46100297,61112.0,61111.0,0.0012]
[1724421111918,1.46000297,61112.0,61111.0,0.0012]
[1724421112150,1.46100297,61112.0,61111.0,0.0012]
[1724421112357,1.60969721,61112.0,61111.0,0.0012]
[1724421112612,1.45800297,61112.0,61111.0,0.0002]
[1724421113034,1.47100297,61112.0,61111.0,0.0012]
[1724421113249,1.48500297,61112.0,61111.0,0.0012]
[1724421113447,1.45800297,61112.0,61111.0,0.0002]
[1724421113650,1.46100297,61112.0,61111.0,0.0002]
[1724421113923,1.48900297,61112.0,61111.0,0.0012]
[1724421114116,1.48600297,61112.0,61111.0,0.0012]
[1724421114281,1.6080352,61112.0,61111.0,0.0012]
[1724421114488,1.48600297,61112.0,61111.0,0.0012]
[1724421115123,1.48600297,61112.0,61094.0,0.00785621]
[1724421115124,0.960097,61095.0,61094.0,0.00785621]
[1724421115371,0.960097,61095.0,61091.0,0.0002]
[1724421115372,0.632762,61092.0,61091.0,0.0002]
[1724421115585,0.74733766,61092.0,61091.0,0.0002]
[1724421115784,0.77300834,61092.0,61091.0,0.0002]
[1724421115994,0.44563334,61092.0,61091.0,0.0002]
[1724421116203,0.16737068,61092.0,61091.0,0.0002]
[1724421116618,0.16737068,61092.0,61091.0,0.00857948]
[1724421116823,0.16737068,61092.0,61091.0,0.0002]
[1724421117043,0.17137068,61092.0,61091.0,0.00857948]
[1724421117276,0.17137068,61092.0,61091.0,0.0002]
[1724421117710,0.17137068,61092.0,61091.0,0.00857948]
[1724421117916,0.17137068,61092.0,61091.0,0.16389]
[1724421118126,0.17137068,61092.0,61091.0,0.49964948]
[1724421118744,0.17137068,61092.0,61091.0,0.17226948]
[1724421118965,0.02967068,61092.0,61091.0,0.66365246]
[1724421119178,0.02967068,61092.0,61091.0,1.31841246]
[1724421119387,0.03067068,61092.0,61091.0,1.31841246]
[1724421119867,0.02567068,61092.0,61091.0,1.31841246]
[1724421120590,0.02567068,61092.0,61091.0,1.32050733]
[1724421120791,0.02567068,61092.0,61091.0,1.38450733]
[1724421121181,0.02667068,61092.0,61091.0,1.38450733]
[1724421121608,0.02667068,61092.0,61091.0,1.79685413]
[1724421121976,0.02671068,61092.0,61091.0,1.79685413]
[1724421122152,0.02671068,61092.0,61091.0,1.89785413]
[1724421122323,0.02671068,61092.0,61091.0,1.89685413]
[1724421122324,0.02571068,61092.0,61091.0,1.89685413]
[1724421122526,0.02571068,61092.0,61091.0,1.46947413]
[1724421122727,0.02671068,61092.0,61091.0,1.00089413]
[1724421123290,0.02771068,61092.0,61091.0,1.00089413]
[1724421123610,0.02571068,61092.0,61091.0,0.18244413]
[1724421123821,0.02571068,61092.0,61091.0,0.01067435]
[1724421123822,0.44917334,61092.0,61091.0,0.01067435]
[1724421124016,0.77654834,61092.0,61091.0,0.01067435]
[1724421124261,1.10392334,61092.0,61091.0,0.01067435]
[1724421124486,1.10292334,61092.0,61091.0,0.01067435]
[1724421124694,0.77654834,61092.0,61091.0,0.0002]
[1724421124896,1.25004977,61092.0,61091.0,0.0002]
[1724421125099,1.67742477,61092.0,61091.0,0.0002]
[1724421125647,1.67742477,61092.0,61071.0,0.0002]
[1724421125648,0.568266,61079.0,61074.0,0.00779217]
[1724421125854,0.74544166,61079.0,61074.0,0.00779217]
[1724421126053,1.50132966,61079.0,61074.0,0.00779217]
[1724421126254,1.69298613,61079.0,61074.0,0.00779217]
[1724421126468,2.20943311,61079.0,61074.0,0.00779217]
[1724421126643,2.20943311,61079.0,61071.0,0.0002]
[1724421126644,0.168741,61072.0,61071.0,0.0002]
[1724421126848,1.24688364,61072.0,61071.0,0.0002]
[1724421127101,0.494247,61069.0,61068.0,3.924577]
[1724421127427,1.7872042,61069.0,61068.0,3.924577]
[1724421127628,2.1403862,61069.0,61068.0,3.924577]
[1724421128323,2.1403862,61069.0,61068.0,3.93461378]
[1724421129373,2.3348842,61069.0,61068.0,2.12609472]
[1724421129542,2.06966815,61069.0,61068.0,2.12609472]
[1724421129945,2.0362862,61069.0,61068.0,2.12609472]
[1724421130559,2.0502862,61069.0,61068.0,2.12609472]
[1724421130754,2.0362862,61069.0,61068.0,2.12609472]
[1724421131265,2.0502862,61069.0,61068.0,2.12609472]
[1724421132835,1.60821254,61069.0,61068.0,2.12609472]
[1724421133069,1.6997882,61069.0,61068.0,2.11605794]
[1724421133269,2.0272862,61069.0,61068.0,2.11605794]
[1724421133559,2.0272862,61069.0,61068.0,2.12609472]
[1724421133745,2.0272862,61069.0,61068.0,2.11605794]
[1724421134799,2.0502862,61069.0,61068.0,2.11605794]
[1724421136398,1.58021254,61069.0,61068.0,2.11605794]
[1724421136584,0.872429,61069.0,61068.0,2.11605794]
[1724421136777,0.873429,61069.0,61068.0,2.11605794]
[1724421136979,0.875429,61069.0,61068.0,2.11605794]
[1724421137330,1.02743198,61069.0,61068.0,2.11605794]
[1724421137583,1.47062074,61069.0,61068.0,2.11605794]
[1724421137765,1.58552074,61069.0,61068.0,2.11605794]
[1724421137940,1.58556074,61069.0,61068.0,2.11605794]
[1724421138840,1.60856074,61069.0,61068.0,2.11605794]
[1724421139043,1.59456074,61069.0,61068.0,2.11605794]
[1724421139244,1.62256074,61069.0,61068.0,2.11605794]
[1724421139695,1.59456074,61069.0,61068.0,2.11605794]
[1724421139895,1.61856074,61069.0,61068.0,2.11605794]
[1724421140147,1.62056074,61069.0,61068.0,2.11605794]
[1724421140372,1.60656074,61069.0,61068.0,2.11605794]
[1724421140525,1.60856074,61069.0,61068.0,2.11605794]
[1724421140704,1.62256074,61069.0,61068.0,2.11605794]
[1724421140904,1.48786998,61069.0,61068.0,2.11605794]
[1724421141114,0.630971,61069.0,61068.0,2.11605794]
[1724421141312,0.861469,61069.0,61068.0,2.11605794]
[1724421141512,1.35496998,61069.0,61068.0,2.12609472]
[1724421142348,1.34096998,61069.0,61068.0,2.12609472]
[1724421142549,1.60494876,61069.0,61068.0,2.12609472]
[1724421142773,1.64194876,61069.0,61068.0,2.12609472]
[1724421142932,1.63994876,61069.0,61068.0,2.12609472]
[1724421143102,1.65394876,61069.0,61068.0,2.12609472]
[1724421143310,1.65594876,61069.0,61068.0,2.12609472]
[1724421145530,1.48796998,61069.0,61068.0,2.12609472]
[1724421145780,1.49196998,61069.0,61068.0,2.12609472]
[1724421146589,1.83436798,61069.0,61068.0,2.12609472]
[1724421146938,1.50686998,61069.0,61068.0,2.12609472]
[1724421147142,1.50686998,61069.0,61068.0,2.11605794]
[1724421147261,1.67084876,61069.0,61068.0,2.11605794]
[1724421147455,1.67084876,61069.0,61068.0,2.12609472]
[1724421148274,1.99834676,61069.0,61068.0,2.12609472]
[1724421149307,1.50686998,61069.0,61068.0,2.12609472]
[1724421150089,1.50286998,61069.0,61068.0,2.12609472]
[1724421150295,1.49196998,61069.0,61068.0,2.12609472]
[1724421151145,1.81946798,61069.0,61068.0,2.12609472]
[1724421151346,1.49196998,61069.0,61068.0,2.12609472]
[1724421151546,1.65194876,61069.0,61068.0,2.12609472]
[1724421151747,1.65594876,61069.0,61068.0,2.12609472]
[1724421152326,1.98344676,61069.0,61068.0,2.12609472]
[1724421152606,1.77052442,61069.0,61068.0,2.12609472]
[1724421153106,1.77052442,61069.0,61068.0,2.11605794]
[1724421153515,1.60654564,61069.0,61068.0,2.11605794]
[1724421154554,1.60654564,61069.0,61068.0,2.12606447]
[1724421155668,1.93404364,61069.0,61068.0,2.12606447]
[1724421155871,1.60654564,61069.0,61068.0,2.12606447]
[1724421156273,1.93404364,61069.0,61068.0,2.12606447]
[1724421156590,1.77052442,61069.0,61068.0,2.12606447]
[1724421156743,1.76652442,61069.0,61068.0,2.12606447]
[1724421156940,1.76852442,61069.0,61068.0,2.12606447]
[1724421157144,1.60154564,61069.0,61068.0,2.12606447]
[1724421157347,0.972469,61069.0,61068.0,2.25645794]
[1724421157553,1.08704466,61069.0,61068.0,2.26646447]
[1724421158149,0.972469,61069.0,61068.0,2.26646447]
[1724421158554,0.153724,61069.0,61068.0,2.26646447]
[1724421158732,0.217473,61069.0,61068.0,2.26646447]
[1724421159133,0.053724,61069.0,61068.0,2.26646447]
[1724421159339,0.039724,61069.0,61068.0,2.26646447]
[1724421159539,0.858469,61069.0,61068.0,2.26646447]
[1724421159784,1.36601431,61069.0,61068.0,2.26646447]
[1724421160187,1.38001431,61069.0,61068.0,2.25645794]
[1724421160395,1.54801729,61069.0,61068.0,2.11605794]
[1724421160627,1.36543865,61069.0,61068.0,2.11605794]
[1724421161014,1.36543865,61069.0,61068.0,2.12606447]
[1724421161888,0.972469,61069.0,61068.0,2.20646447]
[1724421162098,0.644971,61069.0,61068.0,2.20646447]
[1724421162824,0.053724,61069.0,61068.0,2.20646447]
[1724421163031,0.053724,61069.0,61068.0,2.43041547]
[1724421163567,0.039724,61069.0,61068.0,2.26666447]
[1724421163767,0.053724,61069.0,61068.0,2.26666447]
[1724421164051,0.203473,61069.0,61068.0,2.26666447]
[1724421164251,0.189473,61069.0,61068.0,2.26666447]
[1724421164532,0.196473,61069.0,61068.0,2.26666447]
[1724421164764,0.530971,61069.0,61068.0,2.26666447]
[1724421164961,0.536971,61069.0,61068.0,2.26666447]
[1724421165162,0.195473,61069.0,61068.0,2.26666447]
[1724421165406,0.031724,61069.0,61068.0,2.43041547]
[1724421165623,0.035724,61069.0,61068.0,2.43041547]
[1724421165824,0.035724,61069.0,61068.0,2.75791847]
[1724421166031,0.031724,61069.0,61068.0,3.74090623]
[1724421166233,0.81967154,61091.0,61080.0,0.327438]
[1724421166234,0.49229154,61091.0,61080.0,0.327438]
[1724421166434,0.49229154,61091.0,61068.0,2.45404623]
[1724421166435,0.49229154,61091.0,61084.0,0.0815]
[1724421166562,0.491118,61085.0,61084.0,0.0815]
[1724421166767,0.163706,61085.0,61084.0,0.0815]
[1724421166967,0.163702,61087.0,61084.0,0.0815]
[1724421167168,4e-05,61092.0,61084.0,0.0815]
[1724421167169,0.163706,61085.0,61084.0,0.0815]
[1724421167368,0.491118,61085.0,61084.0,0.0815]
[1724421167592,0.163706,61085.0,61084.0,0.0815]
[1724421167919,4e-05,61092.0,61084.0,0.0815]
[1724421168119,0.008,61085.0,61084.0,0.0815]
[1724421168926,0.177706,61085.0,61084.0,0.0815]
[1724421169130,0.505118,61085.0,61084.0,0.0815]
[1724421169331,0.499118,61085.0,61084.0,0.0815]
[1724421170138,0.81853,61085.0,61084.0,0.0815]
[1724421170310,1.26051766,61085.0,61084.0,0.0815]
[1724421170515,1.26051766,61085.0,61084.0,0.0825]
[1724421170798,1.17461777,61085.0,61084.0,0.0815]
[1724421171210,1.18161777,61085.0,61084.0,0.0825]
[1724421171456,1.30833711,61085.0,61084.0,0.0825]
[1724421171762,1.31433711,61085.0,61084.0,0.0825]
[1724421172127,0.52979377,61085.0,61084.0,0.0825]
[1724421172260,0.51679377,61085.0,61084.0,0.0815]
[1724421172465,0.18938177,61085.0,61084.0,0.09144387]
[1724421172663,0.20038177,61085.0,61084.0,0.09144387]
[1724421172863,0.52779377,61085.0,61084.0,0.09144387]
[1724421173477,0.94072595,61085.0,61084.0,0.09144387]
[1724421173675,0.94872595,61085.0,61084.0,0.09244387]
[1724421173875,0.93772595,61085.0,61084.0,0.0825]
[1724421174127,0.93772595,61085.0,61084.0,0.0815]
[1724421174128,0.93572595,61085.0,61084.0,0.0815]
[1724421174325,1.26313795,61085.0,61084.0,0.0815]
[1724421174567,1.18561777,61085.0,61084.0,0.0825]
[1724421174694,1.17761777,61085.0,61084.0,0.0815]
[1724421175213,0.53079377,61085.0,61084.0,0.0825]
[1724421175640,0.54479377,61085.0,61084.0,0.0825]
[1724421175845,0.53879377,61085.0,61084.0,0.0825]
[1724421176052,0.21142177,61085.0,61084.0,0.0825]
[1724421176249,0.04771577,61085.0,61084.0,0.0825]
[1724421176452,0.21142177,61085.0,61084.0,0.09244387]
[1724421177031,0.04771577,61085.0,61084.0,0.25615187]
[1724421177205,0.05871577,61085.0,61084.0,1.2152546]
[1724421177379,0.05871577,61085.0,61084.0,0.81187185]
[1724421177587,0.03671577,61085.0,61084.0,0.81087185]
[1724421177798,0.03671577,61085.0,61084.0,0.81187185]
[1724421177799,0.04671577,61085.0,61084.0,0.81187185]
[1724421178197,0.02571577,61085.0,61084.0,0.81087185]
[1724421178399,0.02871577,61085.0,61084.0,0.81087185]
[1724421178597,0.03471577,61085.0,61084.0,0.81087185]
[1724421178798,0.03471577,61085.0,61084.0,0.15574387]
[1724421179043,0.02871577,61085.0,61084.0,0.15574387]
[1724421179238,0.51983377,61085.0,61084.0,0.15574387]
[1724421179663,0.51983377,61085.0,61084.0,0.1458]
[1724421179817,0.96182143,61085.0,61084.0,0.1458]
[1724421180179,0.96182143,61085.0,61084.0,0.0815]
[1724421180540,1.28923343,61085.0,61084.0,0.0815]
[1724421181007,1.45089697,61085.0,61084.0,0.0815]
[1724421181211,0.96182143,61085.0,61084.0,0.0815]
[1724421181410,0.95882143,61085.0,61084.0,0.0815]
[1724421181529,0.97982143,61085.0,61084.0,0.0825]
[1724421181936,0.84424577,61085.0,61084.0,0.0815]
[1724421182142,0.85824577,61085.0,61084.0,0.0825]
[1724421182339,0.86924577,61085.0,61084.0,0.0825]
[1724421182786,1.11504267,61085.0,61084.0,0.0825]
[1724421183015,0.98382143,61085.0,61084.0,0.0825]
[1724421183405,1.36366075,61085.0,61084.0,0.001]
[1724421183609,1.86277275,61085.0,61084.0,0.001]
[1724421183854,0.491247,61069.0,61068.0,2.19435794]
[1724421184028,0.93332066,61069.0,61068.0,2.19435794]
[1724421184231,1.26081866,61069.0,61068.0,2.20436447]
[1724421184445,1.28649964,61069.0,61068.0,2.20436447]
[1724421185436,0.97300164,61069.0,61068.0,2.20436447]
[1724421185643,0.95900164,61069.0,61068.0,2.20436447]
[1724421186072,0.97300164,61069.0,61068.0,2.20436447]
[1724421186402,1.02487819,61069.0,61068.0,2.20436447]
[1724421186691,1.30049964,61069.0,61068.0,2.12606447]
[1724421187097,1.31449964,61069.0,61068.0,2.12606447]
[1724421187477,1.28649964,61069.0,61068.0,2.12606447]
[1724421187909,0.98500164,61069.0,61068.0,2.12606447]
[1724421188245,0.97300164,61069.0,61068.0,2.12606447]
[1724421188650,0.98700164,61069.0,61068.0,2.12606447]
[1724421189304,0.98700164,61069.0,61068.0,2.11605794]
[1724421189745,1.1184513,61069.0,61068.0,2.12606447]
[1724421190522,1.0904513,61069.0,61068.0,2.12606447]
[1724421190873,1.1164513,61069.0,61068.0,2.12606447]
[1724421191797,0.98500164,61069.0,61068.0,2.12606447]
[1724421192446,0.87042598,61069.0,61068.0,2.12606447]
[1724421192600,0.87042598,61069.0,61068.0,2.20526447]
[1724421193061,0.98500164,61069.0,61068.0,2.20526447]
[1724421194717,0.98500164,61069.0,61068.0,1.00085256]
[1724421194718,1.86216496,61069.0,61068.0,1.00085256]
[1724421194925,1.97874062,61069.0,61068.0,1.00085256]
[1724421195130,1.86016496,61069.0,61068.0,1.00495909]
[1724421195418,1.96674062,61069.0,61068.0,1.0049591]
[1724421195804,1.98074062,61069.0,61068.0,1.0049591]
[1724421196306,1.98074062,61069.0,61068.0,0.99084603]
[1724421196665,1.98074062,61069.0,61068.0,1.0049591]
[1724421197168,1.96674062,61069.0,61068.0,1.0049591]
[1724421197374,1.80146496,61069.0,61068.0,1.0049591]
[1724421197581,1.93004062,61069.0,61068.0,1.0049591]
[1724421197917,1.90204062,61069.0,61068.0,0.99084603]
[1724421198123,1.93004062,61069.0,61068.0,0.99084603]
[1724421198344,1.93004062,61069.0,61068.0,1.0049591]
[1724421198541,1.91604062,61069.0,61068.0,1.0049591]
[1724421198739,1.80146496,61069.0,61068.0,1.0049591]
[1724421199761,1.91604062,61069.0,61068.0,1.0049591]
[1724421200377,1.90204062,61069.0,61068.0,1.0049591]
[1724421200796,1.941728,61069.0,61068.0,1.0049591]
[1724421201089,1.954728,61069.0,61068.0,1.0049591]
[1724421201293,1.955728,61069.0,61068.0,1.0049591]
[1724421201519,1.959728,61069.0,61068.0,1.0049591]
[1724421201676,1.931728,61069.0,61068.0,1.0049591]
[1724421201874,1.927728,61069.0,61068.0,1.0049591]
[1724421202084,1.959728,61069.0,61068.0,0.99084603]
[1724421202515,1.974628,61069.0,61068.0,1.0049591]
[1724421202949,1.960628,61069.0,61068.0,1.0049591]
[1724421203147,1.941728,61069.0,61068.0,1.0049591]
[1724421203314,1.945728,61069.0,61068.0,0.99084603]
[1724421203536,1.927728,61069.0,61068.0,0.99084603]
[1724421203761,1.945728,61069.0,61068.0,1.0049591]
[1724421204196,1.931728,61069.0,61068.0,1.0049591]
[1724421204415,1.945728,61069.0,61068.0,1.0049591]
[1724421204625,1.99431084,61069.0,61068.0,1.0049591]
[1724421205305,1.99431084,61069.0,61068.0,0.99084603]
[1724421205508,2.00831084,61069.0,61068.0,0.99084603]
[1724421205839,2.00831084,61069.0,61068.0,1.0049591]
[1724421206179,1.99431084,61069.0,61068.0,1.0049591]
[1724421206817,1.98031084,61069.0,61068.0,1.0049591]
[1724421207217,1.960628,61069.0,61068.0,1.0049591]
[1724421207425,2.08959369,61069.0,61068.0,1.0049591]
[1724421207625,2.08959369,61069.0,61068.0,0.92534603]
[1724421207626,2.319926,61069.0,61068.0,0.92534603]
[1724421207846,2.43109169,61069.0,61068.0,0.92534603]
[1724421207982,2.40309169,61069.0,61068.0,0.9394591]
[1724421208184,1.978428,61069.0,61068.0,0.9394591]
[1724421208444,2.006428,61069.0,61068.0,0.92534603]
[1724421208675,1.992428,61069.0,61068.0,0.92534603]
[1724421208902,1.945728,61069.0,61068.0,0.9394591]
[1724421209053,1.955728,61069.0,61068.0,0.92534603]
[1724421209258,1.941728,61069.0,61068.0,0.9394591]
[1724421209833,1.955728,61069.0,61068.0,0.9394591]
[1724421210236,1.955728,61069.0,61068.0,0.92534603]
[1724421210641,1.955728,61069.0,61068.0,0.9394591]
[1724421211096,1.927728,61069.0,61068.0,0.9394591]
[1724421211239,1.941728,61069.0,61068.0,0.9394591]
[1724421211439,1.955728,61069.0,61068.0,0.9394591]
[1724421211651,1.941728,61069.0,61068.0,0.9394591]
[1724421211936,1.927728,61069.0,61068.0,0.9394591]
[1724421212084,1.941728,61069.0,61068.0,0.9394591]
[1724421212289,1.955728,61069.0,61068.0,0.9394591]
[1724421213147,1.41265434,61069.0,61068.0,0.9394591]
[1724421213360,1.41265434,61069.0,61068.0,1.0001591]
[1724421213731,0.89815336,61069.0,61068.0,1.0752591]
[1724421214651,0.99815336,61069.0,61068.0,1.0752591]
[1724421215030,0.99815336,61069.0,61068.0,1.06114603]
[1724421215452,0.99815336,61069.0,61068.0,1.0752591]
[1724421216050,0.55665536,61069.0,61068.0,1.0752591]
[1724421216260,0.06540836,61069.0,61068.0,1.2390101]
[1724421216461,0.06540836,61069.0,61068.0,1.5665131]
[1724421216661,0.06540836,61069.0,61068.0,1.8940161]
[1724421217461,0.06540836,61069.0,61068.0,2.05801908]
[1724421217664,0.03972098,61069.0,61068.0,2.38552208]
[1724421217869,0.163747,61085.0,61077.0,0.1446]
[1724421218080,0.02571846,61085.0,61084.0,0.11457566]
[1724421218287,0.18942446,61085.0,61084.0,0.25907566]
[1724421218695,0.02571846,61085.0,61084.0,0.29899605]
[1724421218898,0.02571846,61085.0,61084.0,0.27308848]
[1724421219104,0.02571846,61085.0,61084.0,0.92821646]
[1724421219105,0.01304,61085.0,61084.0,0.92821646]
[1724421219314,0.01304,61085.0,61084.0,1.25563346]
[1724421219513,0.01304,61085.0,61084.0,1.05377981]
[1724421219712,0.01304,61085.0,61084.0,1.38119681]
[1724421220368,4e-05,61092.0,61091.0,0.63037]
[1724421220561,4e-05,61092.0,61091.0,1.23632864]
[1724421220762,4e-05,61092.0,61091.0,1.25029762]
[1724421220971,4e-05,61092.0,61091.0,1.37532738]
[1724421221321,0.02570975,61092.0,61091.0,1.37532738]
[1724421221538,0.02570975,61092.0,61091.0,1.04794738]
[1724421221736,0.02670975,61092.0,61091.0,0.26784464]
[1724421221939,0.19439675,61092.0,61091.0,0.15326898]
[1724421222142,0.84914675,61092.0,61091.0,0.15326898]
[1724421222366,0.52177175,61092.0,61091.0,0.15326898]
[1724421222768,0.52177175,61092.0,61091.0,0.1393]
[1724421222979,0.84914675,61092.0,61091.0,0.1393]
[1724421223206,0.29746259,61092.0,61087.0,0.0751]
[1724421223340,0.491094,61088.0,61087.0,0.0751]
[1724421223536,0.818495,61088.0,61087.0,0.0751]
[1724421224583,0.832495,61088.0,61087.0,0.0761]
[1724421224926,0.832495,61088.0,61078.0,0.0786]
[1724421224927,0.491166,61079.0,61078.0,0.0786]
[1724421225169,0.491166,61079.0,61074.0,0.0633]
[1724421225170,1.0315486,61079.0,61074.0,0.0633]
[1724421225383,0.163733,61075.0,61074.0,0.0633]
[1724421225590,0.491199,61075.0,61074.0,0.0633]
[1724421225711,0.818665,61075.0,61074.0,0.0633]
[1724421226358,0.818665,61075.0,61074.0,0.07737547]
[1724421226560,1.146131,61075.0,61074.0,0.01407547]
[1724421226901,1.146131,61075.0,61073.0,0.0774]
[1724421226902,0.818677,61074.0,61073.0,0.0774]
[1724421227234,0.491206,61074.0,61073.0,0.0774]
[1724421228557,0.169735,61074.0,61073.0,0.0774]
[1724421228758,0.491206,61074.0,61073.0,0.0774]
[1724421228988,0.494206,61074.0,61073.0,0.0774]
[1724421229209,0.003,61074.0,61073.0,0.60034825]
[1724421229544,0.003,61074.0,61073.0,1.25530025]
[1724421230356,0.01,61074.0,61073.0,1.25530025]
[1724421230513,0.02567874,61078.0,61077.0,0.163727]
[1724421230711,0.02567874,61078.0,61077.0,0.244127]
[1724421231307,0.02567874,61078.0,61077.0,0.571582]
[1724421231509,0.02567874,61078.0,61077.0,0.0804]
[1724421231711,0.51685374,61078.0,61077.0,0.0804]
[1724421231909,0.84430374,61078.0,61077.0,0.0804]
[1724421232111,0.84730374,61078.0,61077.0,0.0804]
[1724421232336,0.19240374,61078.0,61077.0,0.0804]
[1724421232536,0.02867874,61078.0,61077.0,0.37284266]
[1724421232736,0.02867874,61078.0,61077.0,0.0804]
[1724421232895,0.19240374,61078.0,61077.0,0.0804]
[1724421233317,0.18940374,61078.0,61077.0,0.0804]
[1724421233742,0.19740374,61078.0,61077.0,0.0804]
[1724421233915,0.18940374,61078.0,61077.0,0.0804]
[1724421234124,0.51685374,61078.0,61077.0,0.0804]
[1724421234323,0.19740374,61078.0,61077.0,0.0804]
[1724421234587,0.19340374,61078.0,61077.0,0.0804]
[1724421234923,0.20140374,61078.0,61077.0,0.0804]
[1724421235130,0.18940374,61078.0,61077.0,0.0804]
[1724421235334,0.19340374,61078.0,61077.0,0.0804]
[1724421236318,0.163735,61074.0,61073.0,0.061]
[1724421236551,0.35712874,61078.0,61072.0,0.0794]
[1724421236552,0.491214,61073.0,61072.0,0.0794]
[1724421236751,0.81869,61073.0,61072.0,0.0794]
[1724421236956,0.81869,61073.0,61068.0,1.07084603]
[1724421236957,0.818745,61069.0,61068.0,1.07084603]
[1724421237692,0.84442581,61069.0,61068.0,1.07084603]
[1724421237901,0.84442581,61069.0,61068.0,1.00474603]
[1724421238301,0.85542581,61069.0,61068.0,1.00474603]
[1724421238500,0.84442581,61069.0,61068.0,1.00474603]
[1724421238702,0.51692781,61069.0,61068.0,1.00474603]
[1724421238925,0.52792781,61069.0,61068.0,1.00474603]
[1724421239230,0.20042981,61069.0,61068.0,1.0188591]
[1724421240315,0.53492781,61069.0,61068.0,1.0188591]
[1724421240728,0.20742981,61069.0,61068.0,1.0188591]
[1724421240956,0.52792781,61069.0,61068.0,1.0188591]